[Event "Israel-ch Semi-final 2022"]
[Site "Ramat Gan"]
[Date "2022.05.30"]
[Round "4.7"]
[White "Lahav, Michal"]
[Black "Uritsky, Yonathan"]
[Result "0-1"]
[ECO "B12"]
[WhiteElo "2199"]
[BlackElo "2072"]
[Annotator "TA"]
[PlyCount "72"]
[EventDate "2022.05.09"]
[EventType "swiss"]
[EventCountry "ISR"]
[SourceTitle "playchess.com"]
[Source "ChessBase"]
[SourceQuality "1"]
[TimeControl "40/5400+30:1800+30"]

{[%evp 10,72,21,4,20,35,50,6,15,0,6,0,15,0,0,0,0,0,0,-8,-3,-39,-7,-29,0,0,9,0,0,-27,-11,-59,-14,-90,-95,-105,-14,-26,0,-16,-12,-16,-16,-103,-103,-105,-102,-112,-57,-63,-60,-118,-113,-105,-84,-87,-66,-44,-55,-46,-52,-65,-23,-906,-902]} 1. e4 {[%emt 0:00:06]} c6 {[%emt 0:00:12]} 2. d4 {[%emt 0:03:36]} d5 {[%emt 0:00:05]} 3. e5 {[%emt 0:00:02]} Bf5 {[%emt 0:00:08]} 4. Nf3 {[%emt 0:00:55]} e6 {[%emt 0:00:09]} 5. Nbd2 {[%emt 0:00:23]} Nd7 {[%emt 0:02:12]} 6. Nb3 {[%emt 0:01:42]} Ne7 {[%emt 0:03:21] B12: Caro-Kann: Advance Variation.} 7. Be2 {[%emt 0:02:27]} c5 {[%emt 0:04:22]} 8. dxc5 {[%emt 0:02:37]} Nc6 {[%emt 0:01:39][%csl LRc5,LRe5] The position is equal.} 9. Nfd4 {[%emt 0:04:33]} Bg6 {[%emt 0:02:20]} 10. f4 {[%emt 0:10:43] [#]} Nxc5 $146 {[%emt 0:01:57]} ({Predecessor:} 10... Nxd4 11. Qxd4 Bxc2 12. Bb5 Rc8 13. Bd2 Bxb3 14. axb3 Bxc5 15. Qa4 a6 {0-1 (32) Djokic,M (2129)-Agmanov,Z (2404) Veliko Gradiste 2021}) 11. O-O {[%emt 0:03:18]} Nxb3 {[%emt 0:01:28]} 12. Nxb3 {[%emt 0:01:00]} Qb6+ {[%emt 0:02:10]} 13. Kh1 {[%emt 0:00:09]} Be7 {[%emt 0:03:26]} 14. Rf3 {[%emt 0:02:13]} d4 {[%emt 0:04:22]} (14... Be4 {with more complications.} 15. Rg3 Bh4 16. Rc3 Qf2) 15. a3 {[%emt 0:14:01]} Rd8 {[%emt 0:05:22]} 16. Rg3 {[%emt 0:09:34]} h5 {[%emt 0:18:12]} 17. Bd3 {[%emt 0:03:06]} Bxd3 {[%emt 0:01:58]} 18. Qxd3 {[%emt 0:03:18]} g5 {[%emt 0:01:08]} 19. Qe2 {[%emt 0:20:59]} Rd5 {[%emt 0:02:31]} 20. Rh3 {[%emt 0:00:19]} (20. h3 $11 {is more appropriate.}) 20... Kd7 {[%emt 0:01:29]} 21. Nd2 {[%emt 0:06:08]} ({Don't blunder} 21. Rxh5 $2 d3 22. cxd3 Rxh5 23. Qxh5 Qxb3 24. fxg5 Rxe5 $19) (21. Bd2 $11) 21... gxf4 $17 {[%emt 0:03:01]} 22. Nf3 {[%emt 0:00:49]} d3 {[%emt 0:02:04]} (22... Qb5 $17 23. Qf2 Ke8) 23. cxd3 $11 {[%emt 0:04:39]} Nd4 {[%emt 0:00:10]} 24. Nxd4 {[%emt 0:00:09]} Qxd4 $40 {[%emt 0:00:08][%mdl 128] Black has some attack.} 25. Rf3 {[%emt 0:02:06]} Rxe5 {[%emt 0:01:52]} 26. Qd1 {[%emt 0:00:02]} (26. Qf1 $11 {keeps the balance.}) 26... Rf5 $17 {[%emt 0:09:41] Black is much more active. The white rooks are badly placed.} 27. Bd2 {[%emt 0:01:03] [#] aiming for Bc3.} Rc8 {[%emt 0:05:01]} ({Resist} 27... Qxb2 28. Rb1 Qd4 29. Rxb7+ Ke8 30. Bxf4 Rxf4 31. Rb8+ Bd8 32. Rb4 $16) 28. Bc3 {[%emt 0:00:39]} Qd5 {[%emt 0:00:02]} (28... Qc5 $17 29. Qa4+ b5) 29. Qa4+ $15 {[%emt 0:01:40]} Qb5 {[%emt 0:00:01]} 30. Qd4+ {[%emt 0:02:40] [#]} (30. Qxb5+ $15 Rxb5 31. Rxf4) 30... Bd6 $1 $17 {[%emt 0:00:01][%cal Be7d6,Bd6c5,Bc5d4][%mdl 32]} 31. Raf1 {[%emt 0:00:26]} Ke7 {[%emt 0:01:15]} 32. Qxa7 {[%emt 0:01:08]} Bc5 {[%emt 0:01:32] Against Qd4} 33. Qa5 {[%emt 0:00:00]} Qxa5 {[%emt 0:01:16]} 34. Bxa5 {[%emt 0:00:00]} Bd4 {[%emt 0:00:00]} 35. Bb4+ {[%emt 0:00:10]} Kd7 {[%emt 0:01:51] And now ...Rc2 would win.} 36. g4 $2 {[%emt 0:01:14][%mdl 8192]} (36. g3 $11) 36... hxg4 {[%emt 0:00:49] Weighted Error Value: White=0.47/Black=0.16 (very precise)} 0-1

[Event "Israel-ch Semi-final 2022"]
[Site "Ramat Gan"]
[Date "2022.05.30"]
[Round "4.8"]
[White "Ribshtein, Nati"]
[Black "Rozen, Guy"]
[Result "0-1"]
[ECO "D07"]
[WhiteElo "2286"]
[BlackElo "1967"]
[Annotator "TA"]
[PlyCount "122"]
[EventDate "2022.05.09"]
[EventType "swiss"]
[EventCountry "ISR"]
[SourceTitle "playchess.com"]
[Source "ChessBase"]
[SourceQuality "1"]
[TimeControl "40/5400+30:1800+30"]

{[%evp 17,122,35,27,0,62,29,27,14,10,6,52,56,62,47,43,53,41,-27,147,31,22,-94,-92,-275,88,-187,-185,-192,-189,-178,-189,-208,-210,-216,-215,-211,-207,-205,-211,-269,-250,-290,-240,-230,-183,-183,-187,-184,-210,-194,-232,-235,-238,-385,-390,-424,-329,-348,-320,-339,-311,-303,-204,-205,-190,-194,-186,-393,-372,-377,-237,-236,0,-303,-303,-308,-303,-295,-301,-296,-290,-290,-243,-294,-294,-271,-187,-4145,-4145,-4145,-4145,-4145,-4145,-4145,-4145,-8020,-4145,-4145,-4145,-8020,-876,-5726,-4145,-10295,-4145,-12848,-6114]} 1. d4 {[%emt 0:00:30]} d5 {[%emt 0:05:11]} 2. c4 {[%emt 0:00:00]} Nc6 {[%emt 0:00:44]} 3. cxd5 {[%emt 0:00:00]} Qxd5 {[%emt 0:00:04]} 4. e3 {[%emt 0:00:05]} e5 {[%emt 0:01:04]} 5. Nc3 {[%emt 0:00:09]} Bb4 {[%emt 0:00:02]} 6. Bd2 {[%emt 0:00:22]} Bxc3 {[%emt 0:00:03]} 7. Bxc3 {[%emt 0:00:27]} exd4 {[%emt 0:00:44]} 8. Ne2 {[%emt 0:00:12][%cal Bg1e2,Be2d4,Bd4b5][%mdl 32]} Nf6 {[%emt 0:01:05]} 9. Nxd4 {[%emt 0:00:19]} O-O {[%emt 0:02:03]} 10. Nb5 {[%emt 0:03:50] D07: Queen's Gambit: Chigorin Defence.} Qg5 {[%emt 0:04:23]} (10... Bg4 $11 11. Nxc7 (11. f3 Qg5 $11) 11... Qxd1+ 12. Rxd1 Rac8) 11. h4 {[%emt 0:03:07]} Qh6 {[%emt 0:00:02]} 12. Nxc7 {[%emt 0:27:40] White has an edge.} Bg4 {[%emt 0:04:09]} 13. Qa4 {[%emt 0:06:45] was the old line (13.Qb3).} Rad8 {[%emt 0:09:41]} (13... Rac8 $11) 14. Bb5 $14 {[%emt 0:04:32] [#]} Bd7 $146 {[%emt 0:14:56]} ({Predecessor:} 14... Bf5 15. Bxc6 bxc6 16. Bb4 Qg6 17. O-O Bh3 18. Qxc6 Rd5 19. g3 Qe4 20. f3 Qxe3+ 21. Rf2 Ng4 22. Qc2 Nxf2 23. Nxd5 {1-0 (23) Lagunow,A (2434)-Rabiega,R (2524) Berlin 2009}) 15. O-O-O {[%emt 0:01:52]} a6 $1 {[%emt 0:00:43] [#]} 16. Nxa6 {[%emt 0:23:19] aiming for Nc5.} Ra8 $1 {[%emt 0:33:32][%mdl 64] Pin} 17. Rd6 {[%emt 0:08:04]} (17. Bxf6 bxa6 18. Bg5 (18. Rxd7 axb5 19. Qf4 Qxf4 $17) (18. Bxc6 Bxc6 19. Qxc6 Rfc8 $11) (18. Bxa6 $2 Qxf6 19. Rxd7 Ne5 $19) 18... axb5 19. Qxa8 Qe6 $11) ({White should try} 17. Qc4 $14) 17... Rfc8 $2 {[%emt 0:02:58] [#]} (17... Be6 $11) 18. Rhd1 $1 {[%emt 0:00:18]} Be8 $1 {[%emt 0:02:38]} 19. g3 {[%emt 0:12:40] [#]} Qh5 $1 $17 {[%emt 0:02:53]} 20. Kb1 $2 {[%emt 0:05:00]} Qf5+ $2 {[%emt 0:00:56]} ({Better is} 20... bxa6 $19 21. Bf1 Ne7) 21. Ka1 $2 {[%emt 0:00:20][%mdl 8192]} (21. Bd3 $16 {is necessary to keep the advantage.} Qf3 {[#]} 22. Qc2 $1 (22. Bxf6 Ne5 $17) 22... bxa6 23. Bxf6 gxf6 24. Bxh7+ Kg7 25. Be4) 21... Ne4 $19 {[%emt 0:02:46]} 22. Bd3 {[%emt 0:01:22]} Nxc3 {[%emt 0:02:32] The board is on fire.} 23. Bxf5 {[%emt 0:00:04]} Nxa4 {[%emt 0:00:06] Pair of Knights!} 24. Bxc8 {[%emt 0:00:06]} Rxc8 {[%emt 0:00:19]} 25. b3 {[%emt 0:01:08]} Nc3 {[%emt 0:00:10]} 26. Nc5 {[%emt 0:00:44]} Nxd1 {[%emt 0:00:38]} 27. Rxd1 {[%emt 0:00:03]} Rc7 {[%emt 0:04:40]} 28. Na4 {[%emt 0:00:54]} Kf8 {[%emt 0:00:55]} 29. Nb6 {[%emt 0:00:11]} f6 {[%emt 0:00:45]} 30. Kb2 {[%emt 0:00:48]} Bf7 {[%emt 0:00:33]} 31. Rd7 {[%emt 0:00:36]} Rxd7 {[%emt 0:00:29]} 32. Nxd7+ {[%emt 0:00:03]} Ke7 {[%emt 0:00:16]} 33. Nc5 {[%emt 0:00:16]} b6 {[%emt 0:02:15][%cal Bb7b6,Bb6b5][%mdl 32]} 34. Na4 {[%emt 0:00:47]} b5 {[%emt 0:00:02]} 35. Nc3 {[%emt 0:00:48]} (35. Nc5 {was forced.}) 35... b4 {[%emt 0:00:02]} 36. Ne4 {[%emt 0:00:31]} Bg6 {[%emt 0:00:28]} 37. Nd2 {[%emt 0:00:07]} Bd3 {[%emt 0:00:55]} 38. a3 {[%emt 0:00:16]} bxa3+ {[%emt 0:00:54]} 39. Kxa3 {[%emt 0:00:04]} Kd6 {[%emt 0:00:27] Hoping for ...Ne5.} 40. Kb2 {[%emt 0:00:11]} Kc5 {[%emt 0:00:51]} 41. Kc3 {[%emt 0:30:06]} Nb4 {[%emt 0:30:39]} 42. e4 $2 {[%emt 0:00:00]} (42. Nf3 {is a better defense.}) 42... Be2 {[%emt 0:00:00]} 43. Nb1 {[%emt 0:00:00]} Bf3 {[%emt 0:00:00]} 44. Nd2 {[%emt 0:00:00]} Be2 {[%emt 0:00:00]} 45. Nb1 $1 {[%emt 0:00:00]} g5 {[%emt 0:00:00]} 46. e5 {[%emt 0:00:00]} gxh4 {[%emt 0:00:00]} 47. exf6 {[%emt 0:00:00]} Nd5+ {[%emt 0:00:00]} 48. Kd2 {[%emt 0:00:00]} Bh5 {[%emt 0:00:00]} ({And not} 48... Nxf6 49. Kxe2 h3 50. Kf1 $11) 49. gxh4 {[%emt 0:00:00]} Nxf6 {[%emt 0:00:00]} 50. Ke3 {[%emt 0:00:00]} Nd5+ {[%emt 0:00:00]} 51. Kd2 {[%emt 0:00:00]} Kb4 {[%emt 0:00:00] White must now prevent ...Bg6.} 52. Ke1 $2 {[%emt 0:00:00]} (52. Kd3) 52... Kxb3 {[%emt 0:00:00] Black is clearly winning.} 53. Nd2+ {[%emt 0:00:00]} Kc3 {[%emt 0:00:22]} 54. Ne4+ {[%emt 0:00:00]} Kd4 {[%emt 0:01:55]} 55. Ng3 {[%emt 0:00:00]} Bg4 {[%emt 0:00:50]} 56. Kd2 {[%emt 0:00:00]} Ke5 {[%emt 0:02:43] Threatens to win with ...Ne7.} 57. Nf1 {[%emt 0:00:00]} Kf4 {[%emt 0:00:17] Strongly threatening ...Ne7.} 58. Nh2 {[%emt 0:00:00]} Bh5 {[%emt 0:00:22]} (58... Ne7 $142 59. h5 Bxh5) 59. Kd3 {[%emt 0:00:00]} Ne7 {[%emt 0:00:55]} 60. Kd4 {[%emt 0:00:00]} Nf5+ {[%emt 0:00:13]} 61. Kd5 {[%emt 0:00:00]} Bf7+ {[%emt 0:00:15] Weighted Error Value: White=0.69/Black=0.39} (61... Nxh4 $142 62. Nf1 Bf7+ 63. Kd4 Nf3+ 64. Kc3 h5) 0-1

[Event "Israel-ch Semi-final 2022"]
[Site "Ramat Gan"]
[Date "2022.05.30"]
[Round "4.9"]
[White "Flaum, Mark"]
[Black "Kochavi, Ori"]
[Result "0-1"]
[ECO "B11"]
[WhiteElo "1915"]
[BlackElo "2365"]
[Annotator "TA"]
[PlyCount "94"]
[EventDate "2022.05.09"]
[EventType "swiss"]
[EventCountry "ISR"]
[SourceTitle "playchess.com"]
[Source "ChessBase"]
[SourceQuality "1"]
[TimeControl "40/5400+30:1800+30"]

{[%evp 10,93,30,16,18,23,21,20,45,13,9,16,21,17,24,14,29,0,11,0,36,36,27,10,10,10,10,12,12,12,12,0,38,45,66,55,88,77,93,46,95,94,102,90,91,91,128,104,113,89,87,0,111,112,129,87,80,0,0,0,0,0,0,0,0,0,8,8,8,18,33,-705,-705,-710,-700,-700,-700,-466,-375,-921,-914,-914,-877,-29998,-29999,-29999]} 1. e4 {[%emt 0:00:00]} c6 {[%emt 0:01:51]} 2. Nc3 {[%emt 0:00:16]} d5 {[%emt 0:00:56]} 3. Nf3 {[%emt 0:00:05]} Bg4 {[%emt 0:00:02]} 4. h3 {[%emt 0:00:14]} Bxf3 {[%emt 0:00:04]} 5. Qxf3 {[%emt 0:00:04]} e6 {[%emt 0:00:03]} 6. Be2 {[%emt 0:00:05]} Nf6 {[%emt 0:00:04] B11: Caro-Kann: Two Knights Variation.} 7. O-O {[%emt 0:01:07]} d4 {[%emt 0:00:03]} (7... Bc5 {is more complex.} 8. Qg3 Nbd7 9. d3 Qb8) 8. Nb1 {[%emt 0:00:36][%cal Bc3b1,Bb1a3,Ba3c4][%mdl 32]} Bd6 {[%emt 0:00:03] The position is equal.} 9. d3 {[%emt 0:10:29]} (9. Qb3 $5 {[%cal Rb3b7]}) 9... Bc7 {[%emt 0:00:04]} 10. a4 {[%emt 0:01:59]} c5 {[%emt 0:00:06] [#]} 11. Na3 $146 {[%emt 0:00:26]} ({Predecessor:} 11. Bg5 Nc6 12. Bxf6 gxf6 13. Qh5 Qe7 14. f4 O-O-O 15. Na3 Rdg8 16. c3 a6 17. Nc2 {0-1 (41) Vivante Sowter,J (2194)-Grayland,S (2349) ICCF email 2020}) 11... Nc6 {[%emt 0:00:05]} 12. Nc4 {[%emt 0:01:01]} h6 {[%emt 0:01:18]} 13. g3 {[%emt 0:08:41]} a6 {[%emt 0:01:55]} 14. a5 {[%emt 0:12:19]} O-O {[%emt 0:06:19][%cal Rc6a5]} 15. Bd2 {[%emt 0:00:03]} Nd7 {[%emt 0:00:27]} 16. Qg2 {[%emt 0:06:22]} Nde5 {[%emt 0:00:24]} 17. Nxe5 {[%emt 0:00:20]} Bxe5 {[%emt 0:00:05]} 18. Ra4 {[%emt 0:02:51]} Bc7 {[%emt 0:00:28][%cal Rc7a5]} 19. Rfa1 {[%emt 0:00:31]} e5 {[%emt 0:14:32][%cal Be6e5,Be5f4][%mdl 32]} 20. f4 {[%emt 0:07:30]} f5 {[%emt 0:00:47]} 21. exf5 $1 {[%emt 0:06:51]} exf4 {[%emt 0:00:06]} 22. g4 {[%emt 0:01:08]} Qf6 {[%emt 0:14:27]} 23. Bf3 {[%emt 0:02:33]} Rae8 {[%emt 0:09:01]} 24. Be4 {[%emt 0:00:27]} (24. Rf1 $16) 24... Kh8 {[%emt 0:12:26]} (24... g6 $14) 25. Rf1 $16 {[%emt 0:07:46]} Re7 {[%emt 0:09:28]} 26. Bxf4 {[%emt 0:03:24]} Bxf4 {[%emt 0:00:04]} 27. Rxf4 {[%emt 0:00:03]} Nb4 {[%emt 0:00:15]} 28. Rf1 {[%emt 0:02:25]} (28. Bxb7 $6 Qd6 29. Rf1 Nxc2 30. Qxc2 Rxb7 $11) 28... Rfe8 {[%emt 0:01:20]} 29. Raa1 {[%emt 0:06:15]} (29. Bxb7 Re2 30. Qg3 (30. Rf2 Re1+ 31. Rf1 R8e2 $17) 30... Nxc2 $17) 29... c4 {[%emt 0:01:15]} 30. Ra4 {[%emt 0:06:59]} ({But not} 30. Bxb7 cxd3 31. cxd3 Nxd3 $17) (30. Rf3 $16) 30... cxd3 {[%emt 0:00:13]} 31. cxd3 {[%emt 0:00:06]} ({Wrong is} 31. Rxb4 $2 Rxe4 32. g5 hxg5 $19) 31... Nc6 {[%emt 0:00:02]} 32. Qf2 {[%emt 0:05:32]} Re5 {[%emt 0:02:35]} 33. Bxc6 {[%emt 0:03:08]} ({White should play} 33. Qd2 $16) 33... bxc6 $11 {[%emt 0:00:38]} 34. Qxd4 {[%emt 0:01:32]} c5 {[%emt 0:03:47]} 35. Qf4 {[%emt 0:01:22]} Re2 {[%emt 0:00:50]} 36. Re4 {[%emt 0:02:31]} R8xe4 {[%emt 0:00:05]} 37. dxe4 {[%emt 0:00:03][%mdl 4096] Endgame KQR-KQR} Qd4+ {[%emt 0:00:04]} 38. Rf2 {[%emt 0:01:13] Strongly threatening f6.} Rxe4 {[%emt 0:01:53]} 39. Qd2 {[%emt 0:00:09]} Qe5 {[%emt 0:00:44] White must now prevent ...Qg3+.} 40. Rg2 {[%emt 0:01:31][%mdl 8192] [#] Prevents Qg3. White does not recover from this.} (40. Qc3 $14) 40... Re1+ $1 $19 {[%emt 0:01:29]} 41. Kf2 {[%emt 0:02:43]} Rb1 {[%emt 0:00:11]} 42. Kf3 {[%emt 0:01:37]} Rf1+ {[%emt 0:00:12]} 43. Rf2 {[%emt 0:00:22]} Rh1 {[%emt 0:00:04]} 44. Qf4 $2 {[%emt 0:11:33] [#]} (44. Rg2) 44... Qd5+ {[%emt 0:05:52]} 45. Qe4 {[%emt 0:03:55]} Rxh3+ {[%emt 0:00:05]} 46. Kf4 {[%emt 0:00:06]} g5+ {[%emt 0:01:56]} 47. fxg6 {[%emt 0:00:15]} Qg5# {[%emt 0:45:22] Weighted Error Value: White=0.55/Black=0.08 (flawless)} 0-1

[Event "Israel-ch Semi-final 2022"]
[Site "Ramat Gan"]
[Date "2022.05.30"]
[Round "4.10"]
[White "Horesh, Tal"]
[Black "Chernomordik, Pavel"]
[Result "0-1"]
[ECO "B06"]
[WhiteElo "1973"]
[BlackElo "2178"]
[Annotator "TA"]
[PlyCount "58"]
[EventDate "2022.05.09"]
[EventType "swiss"]
[EventCountry "ISR"]
[SourceTitle "playchess.com"]
[Source "ChessBase"]
[SourceQuality "1"]
[TimeControl "40/5400+30:1800+30"]

{[%evp 9,58,31,49,35,45,27,68,39,55,15,31,41,37,35,49,-2,20,24,63,22,40,18,29,15,43,30,61,55,62,62,57,37,66,0,102,100,85,75,88,67,87,66,81,16,19,-749,-745,-730,-725,-951,-917]} 1. d4 {[%emt 0:00:21]} g6 {[%emt 0:00:14]} 2. e4 {[%emt 0:00:14]} Bg7 {[%emt 0:00:04]} 3. Nc3 {[%emt 0:00:13]} a6 {[%emt 0:00:23]} 4. Be3 {[%emt 0:00:28]} b5 {[%emt 0:01:14]} 5. Qd2 {[%emt 0:00:27]} Bb7 {[%emt 0:00:09]} 6. f3 {[%emt 0:00:49] B06: Modern Defence.} d6 {[%emt 0:00:07]} 7. h4 {[%emt 0:04:07]} h6 {[%emt 0:00:25]} 8. g4 {[%emt 0:05:22] White is slightly better.} (8. a4 $5 {[%cal Ra4b5]}) 8... Nd7 {[%emt 0:00:30]} 9. Bg2 {[%emt 0:07:12]} Nb6 {[%emt 0:00:46] [#]} 10. b3 $146 {[%emt 0:03:28] Inhibits Nc4.} ({Predecessor:} 10. Bf1 Nf6 11. Nh3 h5 12. g5 Nfd7 13. Bd3 b4 14. Ne2 c5 15. c3 a5 16. a3 {0-1 (34) Goldwasser,J (1713)-Cabrera Pando,R (2201) Buenos Aires 2018}) 10... c5 {[%emt 0:05:42]} 11. Nge2 {[%emt 0:01:55]} Qc7 {[%emt 0:02:05]} 12. Nd1 {[%emt 0:11:07]} ({White should play} 12. a4 $14) 12... Nf6 {[%emt 0:03:05]} 13. c3 {[%emt 0:02:43]} Nfd7 {[%emt 0:06:42]} 14. Nf2 {[%emt 0:01:43]} (14. h5 $5 {[%cal Rh5g6]}) 14... O-O-O {[%emt 0:02:30]} 15. h5 {[%emt 0:07:54]} g5 $1 {[%emt 0:03:10]} 16. O-O {[%emt 0:02:29]} e6 {[%emt 0:01:11]} 17. Nd3 {[%emt 0:08:43]} Rhf8 {[%emt 0:08:36]} 18. Ng3 {[%emt 0:07:59] Prevents f5.} Kb8 {[%emt 0:06:54]} 19. Qf2 {[%emt 0:00:35][%cal Rd4c5]} Rc8 {[%emt 0:00:30]} 20. Rfc1 {[%emt 0:00:42]} Bh8 {[%emt 0:08:57]} 21. Nb2 {[%emt 0:06:07]} (21. Rab1 $14) 21... d5 {[%emt 0:09:24]} (21... f5 $11 {keeps the balance.} 22. gxf5 exf5 23. Nxf5 d5) 22. a4 $1 $16 {[%emt 0:09:00]} bxa4 {[%emt 0:08:22]} 23. Nxa4 {[%emt 0:00:15]} Nxa4 {[%emt 0:04:26]} 24. Rxa4 {[%emt 0:00:43]} cxd4 {[%emt 0:00:15]} 25. cxd4 {[%emt 0:02:05]} Qb6 {[%emt 0:01:16] [#] ...Rxc1+ is the strong threat.} 26. Rca1 {[%emt 0:01:06]} (26. Rb1 $1 $16) 26... Rc3 $1 $11 {[%emt 0:03:11]} 27. b4 $2 {[%emt 0:05:06][%mdl 8192] [#]} (27. exd5 $11 Rxb3 28. dxe6 fxe6 29. Nf1) 27... Rxe3 $1 $19 {[%emt 0:01:16][%mdl 512] Black is clearly winning.} 28. e5 {[%emt 0:00:52]} Qxd4 {[%emt 0:01:16]} 29. Ne2 {[%emt 0:01:18]} Qxe5 {[%emt 0:00:39] Weighted Error Value: White=0.52/Black=0.14 (very precise)} 0-1

[Event "Israel-ch Semi-final 2022"]
[Site "Ramat Gan"]
[Date "2022.06.13"]
[Round "5.1"]
[White "Tzidkiya, Yeshaayahu"]
[Black "Dvoirys, Semen I."]
[Result "0-1"]
[ECO "B51"]
[WhiteElo "2430"]
[BlackElo "2439"]
[Annotator "TA"]
[PlyCount "80"]
[EventDate "2022.05.09"]
[EventType "swiss"]
[EventCountry "ISR"]
[SourceTitle "playchess.com"]
[Source "ChessBase"]
[SourceQuality "1"]
[TimeControl "40/5400+30:1800+30"]

{[%evp 11,80,31,30,18,29,17,28,-5,35,0,52,51,113,117,124,0,0,0,0,0,0,0,0,0,-15,-20,7,0,8,-25,-22,-103,-5,-15,22,-135,-142,-255,-195,-393,-404,-478,-464,-466,-438,-507,-458,-464,-460,-456,-450,-443,-356,-385,-208,-384,-203,-201,-198,-194,-184,-162,-147,-144,-104,-477,-228,-601,-601,-585,-583]} 1. e4 {[%emt 0:28:51]} c5 {[%emt 0:00:06]} 2. Nf3 {[%emt 0:00:05]} d6 {[%emt 0:00:11]} 3. Bb5+ {[%emt 0:00:45]} Nc6 {[%emt 0:01:20]} 4. O-O {[%emt 0:03:07]} Bd7 {[%emt 0:00:06]} 5. c3 {[%emt 0:02:16]} a6 {[%emt 0:00:36]} 6. Ba4 {[%emt 0:00:43]} Nf6 {[%emt 0:00:18]} 7. Qe2 {[%emt 0:01:33] B51: Sicilian: Moscow Variation (3 Bb5+) without 3...Bd7.} b5 {[%emt 0:01:38]} 8. Bc2 {[%emt 0:00:13]} e5 {[%emt 0:00:16]} 9. a4 {[%emt 0:02:43] White has an edge.} b4 {[%emt 0:11:37] [#]} 10. d4 $146 {[%emt 0:04:05]} ({Predecessor:} 10. h3 Be7 11. d4 cxd4 12. cxd4 exd4 13. Rd1 O-O 14. Nxd4 Qc7 15. Be3 Rfe8 16. Nd2 {1-0 (37) Vitolinsh,A (2430)-Lukin,A (2460) Tbilisi 1979}) 10... bxc3 {[%emt 0:01:16]} (10... cxd4 $11 11. cxd4 Bg4 12. dxe5 Bxf3 13. Qxf3 Nd4) 11. dxe5 $14 {[%emt 0:01:01]} cxb2 {[%emt 0:04:18]} (11... dxe5 $14 12. bxc3 Qa5) 12. Bxb2 $16 {[%emt 0:00:04]} Qb8 {[%emt 0:07:43][%csl LRb2,LRe5] [#]} 13. e6 {[%emt 0:20:09]} ({Better is} 13. Na3 $1 $16) 13... Qxb2 $11 {[%emt 0:05:58]} 14. exd7+ {[%emt 0:00:04]} Nxd7 {[%emt 0:00:08][%cal Bf6d7,Bd7e5,Be5c6,Bc6d4][%mdl 32]} (14... Kxd7 $2 15. Na3 Kc7 16. Nc4 $18) 15. Na3 {[%emt 0:00:50][%cal Oe4e5]} Be7 {[%emt 0:04:43]} 16. Nc4 {[%emt 0:00:26]} Qf6 {[%emt 0:03:38]} 17. Ne3 {[%emt 0:08:02]} Nde5 {[%emt 0:09:40]} 18. Nd2 {[%emt 0:04:44]} Nb4 {[%emt 0:10:07]} 19. Bb3 {[%emt 0:05:51]} O-O {[%emt 0:03:59]} 20. f4 {[%emt 0:12:50]} Nec6 {[%emt 0:06:44]} 21. e5 {[%emt 0:00:42] [#]} (21. Nd5 $11 Qh6 22. Nxb4 Nxb4 23. Rad1) 21... dxe5 {[%emt 0:08:06]} (21... Nd4 $1 $17 {[%cal Rd4e2]} 22. exf6 Nxe2+ 23. Kf2 Bxf6 24. Kxe2 Bxa1 25. Rxa1 Rae8) 22. Ne4 $1 {[%emt 0:01:03]} Qh4 {[%emt 0:00:49] Threatens to win with ...Nd4.} (22... Qg6 $5 23. f5 Nd4 24. fxg6 Nxe2+ 25. Kf2 Nd4 26. gxf7+ Rxf7+ 27. Bxf7+ Kxf7 $11) 23. g3 $2 {[%emt 0:01:00]} ({White must play} 23. Rad1 $1 $11 g6 24. g3) 23... Nd4 {[%emt 0:01:40][%csl LRb3,LRe2]} 24. Qc4 {[%emt 0:00:49]} (24. Qf2 $17 {was necessary.} Qh5 25. Bc4) 24... Qh6 {[%emt 0:02:13] White must now prevent ...Rad8.} 25. Ng4 $2 {[%emt 0:00:30]} (25. Rae1 {was worth a try.}) 25... Qg6 $19 {[%emt 0:01:26][%csl LRe4,LRg4]} 26. Nxe5 {[%emt 0:00:30]} Qxe4 {[%emt 0:01:07]} 27. Rae1 {[%emt 0:00:04] Against Qe3+} Qf5 {[%emt 0:00:36]} ({But not} 27... Qb7 $2 28. Nxf7 Nd5 29. Ba2 Kxf7 30. Rxe7+ Qxe7 31. Qxd5+ Kg6 32. g4 Qe3+ 33. Kh1 $19) 28. g4 {[%emt 0:00:58]} Qe6 {[%emt 0:03:45]} 29. Qxe6 {[%emt 0:00:30]} fxe6 {[%emt 0:00:13]} (29... Nxe6 $2 {loses.} 30. Nxf7 Kxf7 31. Rxe6 $19) 30. Bc4 {[%emt 0:00:04]} Kh8 {[%emt 0:01:53]} 31. f5 {[%emt 0:00:08]} exf5 {[%emt 0:01:07]} 32. gxf5 {[%emt 0:01:04]} Nxf5 {[%emt 0:04:57]} (32... Nbc2 $142 33. Re4 Bg5) 33. Nd7 $2 {[%emt 0:00:34]} (33. Nf7+ Rxf7 34. Bxf7) 33... g6 {[%emt 0:01:25]} 34. Rxe7 {[%emt 0:00:22]} Nxe7 {[%emt 0:00:05]} 35. Nxf8 {[%emt 0:00:04]} Nf5 {[%emt 0:00:13]} 36. Nd7 {[%emt 0:00:19]} Rd8 {[%emt 0:00:54]} 37. Be6 {[%emt 0:00:31]} Nd3 {[%emt 0:01:12] Strongly threatening ...Nd4.} 38. a5 $2 {[%emt 0:01:20][%mdl 8192]} (38. Rf3 $17 {was the crucial defense.} c4 39. Bxc4) 38... c4 {[%emt 0:01:31]} (38... Nd4 $142 39. Rf8+ Rxf8 40. Nxf8 Kg7) 39. Rd1 $2 {[%emt 0:00:35]} (39. Bxc4 Rxd7 40. Rd1) 39... Ne3 {[%emt 0:00:36]} 40. Rd2 {[%emt 0:00:16]} Nf4 {[%emt 0:00:34] Weighted Error Value: White=0.70/Black=0.40} 0-1